bitfinex-derivatives/quotes_BNBF0:USTF0_20250101
["timestamp","ask_amount","ask_price","bid_price","bid_amount"]
[1735724782860,0.26253782,701.52,700.37,1.06853489]
[1735724783059,0.26253782,701.51,700.37,1.06853489]
[1735724783259,0.26253782,701.5,700.37,1.06853489]
[1735724783455,0.26253782,701.49,700.37,1.06853489]
[1735724783762,0.26253782,701.48,700.38,1.06853489]
[1735724784059,0.26253782,701.47,700.38,1.06853489]
[1735724784263,0.26253782,701.46,700.38,1.06853489]
[1735724784459,0.26253782,701.45,700.38,1.06853489]
[1735724784759,0.26253782,701.44,700.29,1.06853489]
[1735724784958,0.28508303,701.55,700.3,0.28559188]
[1735724788060,1.77465496,701.55,700.3,0.28559188]
[1735724793163,0.262561,701.54,700.3,0.28559188]
[1735724793867,0.26256001,701.53,700.3,0.28559188]
[1735724794068,0.26256001,701.52,700.3,0.28559188]
[1735724794269,0.26256001,701.51,700.3,0.28559188]
[1735724794472,0.26256001,701.5,700.3,0.28559188]
[1735724794667,0.26256001,701.49,700.3,0.28559188]
[1735724794862,0.26257438,701.48,700.3,0.28559188]
[1735724795070,0.26257438,701.47,700.3,0.28559188]
[1735724795264,0.26257438,701.46,700.3,0.28559188]
[1735724795467,1.77465496,701.55,700.3,0.28559188]
[1735724795668,0.26257327,701.54,700.3,0.28559188]
[1735724795865,0.26257345,701.53,700.3,0.28559188]
[1735724796073,0.26257345,701.52,700.3,0.28559188]
[1735724796370,0.26257345,701.51,700.3,0.28559188]
[1735724796565,0.26257345,701.5,700.3,0.28559188]
[1735724796765,0.26257345,701.49,700.3,0.28559188]
[1735724796965,0.26257345,701.48,700.3,0.28559188]
[1735724797165,0.26257345,701.47,700.3,0.28559188]
[1735724797369,1.77465496,701.55,700.3,0.28559188]
[1735724797370,0.26257345,701.46,700.3,0.28559188]
[1735724797569,0.26257345,701.45,700.3,0.28559188]
[1735724797769,1.77465496,701.55,700.3,0.28559188]
[1735724797770,0.26257345,701.54,700.3,0.28559188]
[1735724797967,0.26257345,701.53,700.3,0.28559188]
[1735724798165,0.26257345,701.52,700.3,0.28559188]
[1735724798373,0.26257345,701.51,700.3,0.28559188]
[1735724798569,0.26257345,701.5,700.3,1.35412677]
[1735724798773,0.26257345,701.49,700.3,1.35412677]
[1735724798975,0.26257345,701.48,700.3,1.35412677]
[1735724799174,0.26257345,701.47,700.3,1.35412677]
[1735724799373,0.26257345,701.46,700.3,1.35412677]
[1735724799570,0.26257345,701.45,700.3,1.35412677]
[1735724799771,1.48967289,701.53,700.3,1.35412677]
[1735724799772,0.26257345,701.44,700.3,0.28559188]
[1735724800075,1.48967289,701.53,700.3,0.28559188]
[1735724800275,0.26258177,701.52,700.3,0.28559188]
[1735724801076,1.48967289,701.53,700.3,0.28559188]
[1735724802175,1.48967289,701.53,700.32,1.06853489]
[1735724802769,0.28508303,701.55,700.32,1.06853489]
[1735724803371,0.28508303,701.55,700.38,1.06853489]
[1735724804778,0.28508303,701.55,700.3,0.28559188]
[1735724804779,0.26255992,701.54,700.41,1.06853489]
[1735724805677,0.26255992,701.54,700.35,1.06853489]
[1735724806379,0.26257038,701.53,700.35,1.06853489]
[1735724806579,0.26257038,701.52,700.35,1.06853489]
[1735724806879,0.28508303,701.55,700.38,1.06853489]
[1735724807078,0.26257174,701.54,700.38,1.06853489]
[1735724808481,0.28509115,701.53,700.38,1.06853489]
[1735724808684,0.26257174,701.52,700.38,1.06853489]
[1735724808875,0.54766696,701.52,700.38,1.06853489]
[1735724809075,0.26257174,701.51,700.37,1.06853489]
[1735724809680,0.26257702,701.5,700.37,1.06853489]
[1735724809879,0.26257702,701.49,700.37,1.06853489]
[1735724810077,0.26257702,701.48,700.37,1.06853489]
[1735724810282,0.26257702,701.47,700.37,1.06853489]
[1735724810480,0.26257702,701.46,700.37,1.06853489]
[1735724810679,0.28509522,701.52,700.37,1.06853489]
[1735724810875,0.26256984,701.51,700.37,1.06853489]
[1735724811681,0.26257861,701.5,700.39,1.06853489]
[1735724811881,0.26257861,701.49,700.39,1.06853489]
[1735724812181,0.26257861,701.48,700.39,1.06853489]
[1735724812380,0.26257861,701.47,700.39,1.06853489]
[1735724812582,0.26257861,701.46,700.39,1.06853489]
[1735724812884,0.28509522,701.52,700.37,1.06853489]
[1735724813082,0.26257443,701.51,700.37,1.06853489]
[1735724813284,1.48965163,701.45,700.37,1.06853489]
[1735724814183,0.26258028,701.44,700.37,1.06853489]
[1735724814485,0.26258028,701.44,700.36,1.06853489]
[1735724815786,0.26258028,701.44,700.3,0.28559188]
[1735724815787,0.26258028,701.44,700.45,1.06853489]
[1735724816985,0.26257318,701.43,700.45,1.06853489]
[1735724817184,0.26257318,701.42,700.45,1.06853489]
[1735724817385,0.26257318,701.41,700.45,1.06853489]
[1735724817586,0.26257318,701.4,700.45,1.06853489]
[1735724817786,0.26257318,701.39,700.45,1.06853489]
[1735724817978,0.26257318,701.39,700.3,0.28559188]
[1735724817979,0.26257318,701.38,700.44,1.06853489]
[1735724818181,0.26257318,701.37,700.44,1.06853489]
[1735724818385,1.48965163,701.45,700.44,1.06853489]
[1735724818386,0.26257318,701.36,700.44,1.06853489]
[1735724818586,0.26257318,701.35,700.44,1.06853489]
[1735724818787,0.26257318,701.34,700.44,1.06853489]
[1735724818987,0.26257318,701.33,700.43,1.06853489]
[1735724819182,0.26257318,701.32,700.43,1.06853489]
[1735724819385,0.26257318,701.31,700.43,1.06853489]
[1735724819586,1.48965163,701.45,700.43,1.06853489]
[1735724819785,0.26258153,701.44,700.43,1.06853489]
[1735724820183,0.26258153,701.44,700.42,1.06853489]
[1735724821188,1.06157671,701.42,700.41,1.06853489]
[1735724822386,1.48965163,701.45,700.36,1.06853489]
[1735724822590,0.26258482,701.44,700.36,1.06853489]
[1735724822791,1.48965163,701.45,700.36,1.06853489]
[1735724823188,0.26258821,701.44,700.36,1.06853489]
[1735724823589,1.48965163,701.45,700.3,0.28559188]
[1735724823590,1.48965163,701.45,700.37,1.06853489]
[1735724824392,1.48965163,701.45,700.3,0.28559188]
[1735724824393,1.48965163,701.45,700.41,1.06853489]
[1735724825289,0.2625942,701.44,700.41,1.06853489]
[1735724825493,0.2625942,701.44,700.38,1.06853489]
[1735724825690,1.48965163,701.45,700.38,1.06853489]
[1735724826794,1.48965163,701.45,700.35,1.06853489]
[1735724828092,1.48965163,701.45,700.39,1.06853489]
[1735724829291,1.48965163,701.45,700.4,1.06853489]
[1735724830493,0.26258535,701.44,700.4,1.06853489]
[1735724831599,1.06157671,701.4,700.47,1.06853489]
[1735724831899,0.26258917,701.39,700.47,1.06853489]
[1735724832593,1.06157671,701.4,700.47,1.06853489]
[1735724833001,1.06157671,701.4,700.46,1.06853489]
[1735724834404,1.48965163,701.45,700.42,1.06853489]
[1735724836605,1.48965163,701.45,700.41,1.06853489]
[1735724837006,0.26258615,701.44,700.41,1.06853489]
[1735724837201,0.26258615,701.44,700.43,1.06853489]
[1735724837405,1.48965163,701.45,700.43,1.06853489]
[1735724837906,0.26258683,701.44,700.43,1.06853489]
[1735724838500,1.48965163,701.45,700.43,1.06853489]
[1735724838906,2.55122834,701.45,700.42,1.06853489]
[1735724839303,0.26258989,701.44,700.42,1.06853489]
[1735724840206,0.26258989,701.44,700.3,0.28559188]
[1735724840207,1.06157671,701.41,700.44,1.06853489]
[1735724841407,1.48965163,701.45,700.4,1.06853489]
[1735724843708,1.06157671,701.44,700.44,1.06853489]
[1735724845012,1.48965163,701.45,700.3,0.28559188]
[1735724845013,1.48965163,701.45,700.37,1.06853489]
[1735724846302,1.48965163,701.45,700.41,1.06853489]
[1735724847602,0.28509522,701.52,700.41,1.06853489]
[1735724847907,0.26254112,701.51,700.41,1.06853489]
[1735724848207,0.28509522,701.52,700.41,1.06853489]
[1735724848404,0.26253986,701.51,700.41,1.06853489]
[1735724849006,1.06157671,701.48,700.66,1.06853489]
[1735724849206,0.26253986,701.47,700.66,1.06853489]
[1735724850208,0.26253986,701.47,700.63,1.06853489]
[1735724850508,1.34667193,701.52,700.63,1.06853489]
[1735724851106,0.28509522,701.52,700.49,1.06853489]
[1735724852711,0.28509522,701.52,700.3,0.28559188]
[1735724852712,0.28509522,701.52,700.48,1.06853489]
[1735724854209,0.28509522,701.52,700.47,1.06853489]
[1735724855712,0.28509522,701.52,700.46,1.06853489]
[1735724857108,0.28509522,701.52,700.3,0.28559188]
[1735724857109,0.28509522,701.52,700.47,1.06853489]
[1735724858017,0.28509522,701.52,700.62,1.06853489]
[1735724859411,0.28509522,701.52,700.66,1.06853489]
[1735724860316,0.28509522,701.52,700.63,1.06853489]
[1735724860616,1.48929569,701.7,700.63,1.06853489]
[1735724861511,1.48929569,701.7,700.59,1.06853489]
[1735724862717,1.48929569,701.7,700.31,0.71860097]
[1735724862718,1.48929569,701.7,700.55,1.06853489]
[1735724863917,1.48929569,701.7,700.45,1.06853489]
[1735724864520,1.06157671,702.15,700.45,1.06853489]
[1735724864812,1.48916292,701.78,700.45,1.06853489]
[1735724865018,0.28484753,702.13,700.43,1.06853489]
[1735724865318,1.48909388,701.82,700.43,1.06853489]
[1735724865515,0.28484753,702.13,700.43,1.06853489]
[1735724865713,1.48908858,701.81,700.43,1.06853489]
[1735724866018,0.28484753,702.13,700.43,1.06853489]
[1735724866219,1.48909388,701.82,700.4,1.06853489]
[1735724866418,0.28484753,702.13,700.4,1.06853489]
[1735724866719,0.26244603,702.12,700.4,1.06853489]
[1735724867617,1.48893991,702.11,700.4,1.06853489]
[1735724867818,0.26244603,702.1,700.4,1.06853489]
[1735724869020,0.26245041,702.09,700.4,1.06853489]
[1735724869220,0.26245041,702.08,700.4,1.06853489]
[1735724869522,0.26245041,702.07,700.37,1.06853489]
[1735724869716,0.26245041,702.06,700.37,1.06853489]
[1735724870017,0.26245041,702.05,700.38,0.28555926]
[1735724870320,0.54733446,702.04,700.38,0.28555926]
[1735724870614,0.54733852,702.03,700.38,0.28555926]
[1735724870816,0.54734257,702.02,700.38,0.28555926]
[1735724871014,0.54734663,702.01,700.38,0.28555926]
[1735724871215,0.54735069,702.0,700.38,0.28555926]
[1735724871415,0.26245041,701.99,700.38,0.28555926]
[1735724871621,0.54738114,701.99,700.38,0.28555926]
[1735724871819,0.2624768,701.98,700.38,0.28555926]
[1735724872022,0.28491246,701.97,700.38,0.28555926]
[1735724877925,1.4888019,701.96,700.38,0.28555926]
[1735724884421,1.4888019,701.96,700.38,1.35409415]
[1735724886927,1.4888019,701.96,700.42,1.06853489]
[1735724887528,0.28491246,701.97,700.42,1.06853489]
[1735724888426,0.28491246,701.97,700.83,1.06853489]
[1735724889833,0.28491246,701.97,700.82,1.06853489]
[1735724894930,0.28491246,701.97,700.7,1.06853489]
[1735724895433,0.28491246,701.97,700.71,0.28542478]
[1735724908437,0.28491246,701.97,700.71,1.35395967]
[1735724909239,0.28491246,701.97,700.74,1.06853489]
[1735724909542,0.28491246,701.97,700.75,0.28540849]
[1735724910344,0.28491246,701.97,700.9,1.06853489]
[1735724910846,1.06157671,702.41,700.9,1.06853489]
[1735724911144,1.4882607,702.18,700.91,0.28534333]
[1735724911341,0.28473804,702.4,700.91,0.28534333]
[1735724911541,0.26230077,702.39,700.91,0.28534333]
[1735724911744,0.26230077,702.39,700.96,1.06853489]
[1735724912940,2.83437393,702.4,701.0,1.06853489]
[1735724913140,0.26228292,702.39,701.0,1.06853489]
[1735724915144,0.26228292,702.39,701.02,1.06853489]
[1735724915540,1.77279722,702.4,701.02,1.06853489]
[1735724915741,0.26228642,702.39,701.02,1.06853489]
[1735724916342,0.26228642,702.39,701.05,1.06853489]
[1735724917944,0.28474614,702.38,701.05,1.06853489]
[1735724918145,0.26227716,702.37,701.05,1.06853489]
[1735724918341,0.28475425,702.36,701.05,1.06853489]
[1735724918545,0.26227716,702.35,701.05,1.06853489]
[1735724918745,0.26227716,702.35,701.07,1.06853489]
[1735724918949,0.26227823,702.34,701.07,1.06853489]
[1735724919141,0.26227823,702.33,701.07,1.06853489]
[1735724919343,0.26227823,702.32,701.07,1.06853489]
[1735724919544,0.28475425,702.36,701.07,1.06853489]
[1735724919746,0.26227809,702.35,701.07,1.06853489]
[1735724920940,0.26227809,702.35,701.08,1.06853489]
[1735724921545,0.5470364,702.35,701.08,1.06853489]
[1735724921742,0.26227809,702.34,701.08,1.06853489]
[1735724922148,0.26227809,702.34,701.11,1.06853489]
[1735724923253,1.06157671,702.26,701.23,1.06853489]
[1735724923449,0.26227809,702.25,701.23,1.06853489]
[1735724923753,0.26228253,702.25,701.23,1.06853489]
[1735724923948,1.48797435,702.24,701.23,1.06853489]
[1735724924149,1.48797435,702.24,701.24,1.06853489]
[1735724925554,1.48797435,702.24,701.2,1.06853489]
[1735724925745,0.28475831,702.35,701.2,1.06853489]
[1735724925952,1.48790542,702.32,701.2,1.06853489]
[1735724926353,1.48790542,702.32,701.23,1.06853489]
[1735724927756,1.48790542,702.32,701.17,1.06853489]
[1735724928161,0.28475831,702.35,701.17,1.06853489]
[1735724928352,1.48781531,702.33,701.17,1.06853489]
[1735724928954,1.48781531,702.33,701.21,1.06853489]
[1735724929954,0.28475831,702.35,701.21,1.06853489]
[1735724930156,0.28475831,702.35,701.16,1.06853489]
[1735724931154,0.28475831,702.35,701.17,1.06853489]
[1735724932462,0.28475831,702.35,701.24,1.06853489]
[1735724933365,0.28475831,702.35,701.27,1.06853489]
[1735724934463,0.28475831,702.35,701.24,1.06853489]
[1735724936158,0.26220133,702.34,701.35,1.06853489]
[1735724937563,0.28475831,702.35,701.34,1.06853489]
[1735724937761,0.26219923,702.34,701.34,1.06853489]
[1735724937961,0.28475831,702.35,701.34,1.06853489]
[1735724938162,0.26220379,702.34,701.34,1.06853489]
[1735724938463,0.28475831,702.35,701.34,1.06853489]
[1735724938657,0.26219804,702.34,701.34,1.06853489]
[1735724939464,0.26220529,702.33,701.34,1.06853489]
[1735724939766,0.28475831,702.35,701.32,1.06853489]
[1735724940865,0.28475831,702.35,701.15,1.06853489]
[1735724941957,0.28475831,702.35,700.96,0.28532298]
[1735724941958,0.28475831,702.35,701.13,1.06853489]
[1735724943265,0.28475831,702.35,701.11,1.06853489]
[1735724944568,0.25759275,702.34,701.06,1.06853489]
[1735724945565,0.28476642,702.33,701.06,1.06853489]
[1735724945767,0.25759275,702.32,701.11,1.06853489]
[1735724945962,0.54236322,702.32,701.11,1.06853489]
[1735724946166,0.25759275,702.31,701.11,1.06853489]
[1735724946571,0.26227317,702.3,701.11,1.06853489]
[1735724946867,0.28477047,702.32,701.11,1.06853489]
[1735724946868,0.26227317,702.29,701.11,1.06853489]
[1735724947067,0.26227317,702.29,700.96,0.28532298]
[1735724947068,0.26227317,702.28,701.13,1.06853489]
[1735724947267,0.26227317,702.27,701.13,1.06853489]
[1735724947467,0.26225938,702.26,701.13,1.06853489]
[1735724947669,0.28477047,702.32,701.13,1.06853489]
[1735724947871,0.26226002,702.31,701.13,1.06853489]
[1735724949169,0.26226743,702.3,701.16,1.06853489]
[1735724949362,0.26226743,702.29,701.16,1.06853489]
[1735724949563,0.26226743,702.28,701.16,1.06853489]
[1735724949762,0.26226802,702.27,701.16,1.06853489]
[1735724950070,0.28477047,702.32,701.16,1.06853489]
[1735724950269,0.26225893,702.31,701.16,1.06853489]
[1735724950771,0.28477047,702.32,701.16,1.06853489]
[1735724951873,0.28477047,702.32,701.24,1.06853489]
[1735724953271,0.28477047,702.32,701.22,1.06853489]
[1735724954275,0.28477047,702.32,700.96,0.28532298]
[1735724954276,0.28477047,702.32,701.2,1.06853489]
[1735724957078,0.28477047,702.32,701.21,1.06853489]
[1735724957979,0.28477047,702.32,701.23,1.06853489]
[1735724958772,1.77254867,702.32,701.23,1.06853489]
[1735724959179,1.77254867,702.32,701.27,1.06853489]
[1735724959575,0.28477047,702.32,701.27,1.06853489]
[1735724960376,0.28477047,702.32,701.28,1.06853489]
[1735724961583,0.28477047,702.32,700.97,0.717905]
[1735724961584,0.28477047,702.32,701.34,1.06853489]
[1735724963777,0.28477047,702.32,701.35,1.06853489]
[1735724964975,0.28477047,702.32,701.38,1.06853489]
[1735724966182,0.28477047,702.32,700.98,0.28531484]
[1735724966183,0.28477047,702.32,701.37,1.06853489]
[1735724967685,0.28477047,702.32,701.31,1.06853489]
[1735724968982,0.28477047,702.32,701.3,1.06853489]
[1735724969679,0.28477047,702.32,701.32,1.06853489]
[1735724970982,0.28477047,702.32,701.34,1.06853489]
[1735724972285,0.28477047,702.32,701.36,1.06853489]
[1735724975585,0.28477047,702.32,701.37,1.06853489]
[1735724976683,2.54893099,702.62,701.43,1.06853489]
[1735724977287,0.26213198,702.61,701.43,1.06853489]
[1735724977687,2.54893099,702.62,701.43,1.06853489]
[1735724977887,1.48735428,702.62,701.34,1.06853489]
[1735724979587,1.48735428,702.62,701.53,1.06853489]
[1735724980789,1.48735428,702.62,701.49,1.06853489]
[1735724981891,1.48735428,702.62,701.48,1.06853489]
[1735724983186,1.48735428,702.62,701.47,1.06853489]
[1735724984591,1.48735428,702.62,701.49,1.06853489]
[1735724985790,1.48735428,702.62,701.46,1.06853489]
[1735724986391,1.48735428,702.62,701.39,1.06853489]
[1735724989896,1.48735428,702.62,701.4,1.06853489]
[1735724990798,1.48735428,702.62,701.41,1.06853489]
[1735724993301,1.48735428,702.62,701.01,0.71611322]
[1735724993302,1.48735428,702.62,701.44,1.06853489]
[1735724995896,1.48735428,702.62,701.01,0.71611322]
[1735724995897,1.48735428,702.62,701.45,1.06853489]
[1735724997202,1.48735428,702.62,701.57,1.06853489]
[1735724998904,0.26212357,702.61,701.57,1.06853489]
[1735724999197,0.26215723,702.6,701.57,1.06853489]
[1735724999400,0.26217097,702.61,701.57,1.06853489]
[1735724999597,0.26217097,702.6,701.43,1.06853489]
[1735724999803,0.26217097,702.59,701.43,1.06853489]
[1735725000003,0.26217097,702.58,701.43,1.06853489]
[1735725000204,0.26217097,702.57,701.43,1.06853489]
[1735725000403,0.54684416,702.56,701.43,1.06853489]
[1735725000602,0.26217097,702.55,701.43,1.06853489]
[1735725000807,0.26217097,702.55,701.01,0.71611322]
[1735725000808,1.06157671,702.51,701.24,1.06853489]
[1735725001003,0.26217097,702.5,701.24,1.06853489]
[1735725001301,0.54693336,702.49,701.24,1.06853489]
[1735725001502,0.2622318,702.48,701.24,1.06853489]
[1735725001703,0.54693741,702.48,701.24,1.06853489]
[1735725001905,0.2622318,702.47,701.24,1.06853489]
[1735725002107,0.2622318,702.47,701.23,1.06853489]
[1735725003306,0.2622318,702.47,701.24,1.06853489]
[1735725003501,0.26222906,702.46,701.24,1.06853489]
[1735725003705,0.26222906,702.45,701.24,1.06853489]
[1735725003906,0.26222906,702.44,701.24,1.06853489]
[1735725004207,0.26222906,702.43,701.24,1.06853489]
[1735725004406,0.26222906,702.42,701.24,1.06853489]
[1735725004607,0.26222906,702.41,701.23,1.06853489]
[1735725004808,0.26222906,702.4,701.23,1.06853489]
[1735725005008,0.26222906,702.39,701.23,1.06853489]
[1735725005209,0.26222906,702.38,701.23,1.06853489]
[1735725005508,0.26222906,702.37,701.23,1.06853489]
[1735725005710,0.26222906,702.37,700.66,2.18159208]
[1735725005711,0.28470561,702.48,701.21,1.06853489]
[1735725006305,0.26221181,702.47,701.21,1.06853489]
[1735725006709,0.26221181,702.47,701.18,1.06853489]
[1735725007207,0.28470561,702.48,701.19,0.28522939]
[1735725007813,0.26220066,702.47,701.19,0.28522939]
[1735725008214,0.26220066,702.47,701.25,1.06853489]
[1735725009016,0.26220088,702.46,701.25,1.06853489]
[1735725009217,0.26220088,702.45,701.2,1.06853489]
[1735725009418,0.26220088,702.47,701.2,1.06853489]
[1735725009712,0.26220088,702.46,701.2,1.06853489]
[1735725010014,0.26220088,702.45,701.2,1.06853489]
[1735725010214,0.26220088,702.44,701.2,1.06853489]
[1735725010415,0.26220088,702.43,701.24,1.06853489]
[1735725010613,0.28470561,702.48,701.24,1.06853489]
[1735725011315,0.2621903,702.47,701.24,1.06853489]
[1735725011514,0.2621903,702.47,701.19,0.28522939]
[1735725011515,0.28470561,702.48,701.26,1.06853489]
[1735725011715,0.26219224,702.47,701.26,1.06853489]
[1735725012016,0.28470561,702.48,701.26,1.06853489]
[1735725012516,0.26219909,702.47,701.26,1.06853489]
[1735725012815,0.26219909,702.47,701.25,1.06853489]
[1735725013616,0.26219909,702.47,701.21,1.06853489]
[1735725014214,0.26221105,702.46,701.21,1.06853489]
[1735725014414,0.26221105,702.45,701.21,1.06853489]
[1735725014615,0.26221105,702.44,701.21,1.06853489]
[1735725014918,0.26221105,702.43,701.19,1.35376428]
[1735725015121,0.26221105,702.42,701.19,1.35376428]
[1735725015318,0.26221105,702.41,701.19,1.35376428]
[1735725015520,1.4876457,702.41,701.19,1.35376428]
[1735725017421,1.4876457,702.41,701.22,1.06853489]
[1735725018622,1.4876457,702.41,701.25,1.06853489]
[1735725019719,1.4876457,702.41,701.19,0.28522939]
[1735725021224,0.28470561,702.48,701.19,0.28522939]
[1735725022322,0.26218327,702.47,701.19,0.28522939]
[1735725022522,0.28470561,702.48,701.19,0.28522939]
[1735725022923,0.262181,702.47,701.19,0.28522939]
[1735725023325,0.28470561,702.48,701.19,0.28522939]
[1735725023326,0.28470561,702.48,701.31,1.06853489]
[1735725023527,0.26217803,702.47,701.31,1.06853489]
[1735725024526,0.28470561,702.48,701.31,1.06853489]
[1735725024725,0.26218422,702.47,701.31,1.06853489]
[1735725025127,0.26218422,702.47,701.19,0.28522939]
[1735725025128,0.26218422,702.47,701.33,1.06853489]
[1735725025829,0.28470561,702.48,701.33,1.06853489]
[1735725026233,0.28470561,702.48,701.19,0.28522939]
[1735725026234,0.28470561,702.48,701.34,1.06853489]
[1735725028632,0.28470561,702.48,701.19,0.28522939]
[1735725028633,0.28470561,702.48,701.37,1.06853489]
[1735725030933,0.28470561,702.48,701.41,1.06853489]
[1735725032431,0.28470561,702.48,701.42,1.06853489]
[1735725033937,0.28470561,702.48,701.45,1.06853489]
[1735725035238,0.28470561,702.48,701.48,1.06853489]
[1735725037642,0.28470561,702.48,701.51,1.06853489]
[1735725038838,0.28470561,702.48,701.52,1.06853489]
[1735725040436,0.28470561,702.48,701.56,1.06853489]
[1735725041738,0.28470561,702.48,701.51,1.06853489]
[1735725042739,0.28470561,702.48,701.54,1.06853489]
[1735725043845,0.28470561,702.48,701.55,1.06853489]
[1735725045046,0.28470561,702.48,701.56,1.06853489]
[1735725046138,0.28470561,702.48,701.51,1.06853489]
[1735725047446,0.28470561,702.48,701.5,1.06853489]
[1735725048547,0.28470561,702.48,701.48,1.06853489]
[1735725049649,0.28470561,702.48,701.25,1.35373988]
[1735725049650,0.28470561,702.48,701.5,1.06853489]
[1735725050648,0.28470561,702.48,701.51,1.06853489]
[1735725051746,0.28470561,702.48,701.58,1.06853489]
[1735725052951,0.28470561,702.48,701.6,1.06853489]
[1735725054351,0.28470561,702.48,701.62,1.06853489]
[1735725055453,0.28470561,702.48,701.64,1.06853489]
[1735725055751,1.4871636,702.64,701.64,1.06853489]
[1735725057148,1.4871636,702.64,701.67,1.06853489]
[1735725058953,1.06157671,702.84,701.67,1.06853489]
[1735725059154,1.48698885,702.75,701.67,1.06853489]
[1735725059353,1.06157671,702.84,701.66,1.06853489]
[1735725059554,1.48693061,702.74,701.66,1.06853489]
[1735725059955,1.06157671,702.84,701.66,1.06853489]
[1735725060154,0.26209758,702.83,701.66,1.06853489]
[1735725060749,0.26209758,702.82,701.66,1.06853489]
[1735725061050,1.48690943,702.82,701.66,1.06853489]
[1735725061255,0.26210501,702.81,701.66,1.06853489]
[1735725061757,1.06157671,702.8,701.64,1.06853489]
[1735725062058,0.26210501,702.79,701.64,1.06853489]
[1735725063351,1.06157671,702.8,701.64,1.06853489]
[1735725063553,0.26211312,702.79,701.64,1.06853489]
[1735725063753,1.06157671,702.78,701.64,1.06853489]
[1735725063956,0.26211312,702.77,701.63,1.06853489]
[1735725065059,0.26211312,702.77,701.26,0.71772436]
[1735725065060,1.06157671,702.75,701.65,1.06853489]
[1735725065358,0.26211312,702.74,701.65,1.06853489]
[1735725065960,1.06157671,702.76,701.65,1.06853489]
[1735725066156,0.26210455,702.75,701.65,1.06853489]
[1735725066653,1.06157671,702.76,701.65,1.06853489]
[1735725066858,0.26210344,702.75,701.65,1.06853489]
[1735725067258,1.06157671,702.72,701.73,1.06853489]
[1735725067459,0.26210344,702.71,701.73,1.06853489]
[1735725068655,1.06157671,702.72,701.73,1.06853489]
[1735725068855,0.26209611,702.71,701.73,1.06853489]
[1735725069259,0.26209611,702.71,701.74,1.06853489]
[1735725069462,0.26209611,702.7,701.74,1.06853489]
[1735725069663,0.26209611,702.69,701.74,1.06853489]
[1735725069861,0.26209611,702.68,701.74,1.06853489]
[1735725070059,0.26209611,702.67,701.74,1.06853489]
[1735725070257,1.06157671,702.73,701.74,1.06853489]
[1735725070565,0.26207897,702.72,701.77,1.06853489]
[1735725070764,0.26207897,702.71,701.77,1.06853489]
[1735725070968,0.26207897,702.7,701.77,1.06853489]
[1735725071164,0.26207897,702.75,701.77,1.06853489]
[1735725071365,0.26207837,702.74,701.77,1.06853489]
[1735725071567,0.26207837,702.73,701.77,1.06853489]
[1735725071762,0.26207837,702.72,701.79,1.06853489]
[1735725072064,0.26207837,702.71,701.79,1.06853489]
[1735725072268,0.26207837,702.7,701.79,1.06853489]
[1735725072465,0.26207837,702.69,701.79,1.06853489]
[1735725072660,0.26207837,702.68,701.79,1.06853489]
[1735725072862,0.26207837,702.67,701.79,1.06853489]
[1735725073065,1.48684061,702.77,701.78,1.06853489]
[1735725073264,0.2620802,702.76,701.78,1.06853489]
[1735725074467,1.48684061,702.77,701.78,1.06853489]
[1735725074667,0.26208292,702.76,701.78,1.06853489]
[1735725075359,0.26208292,702.76,701.77,1.06853489]
[1735725075761,1.48684061,702.77,701.77,1.06853489]
[1735725076967,1.48684061,702.77,701.69,1.06853489]
[1735725077166,0.26206485,702.76,701.69,1.06853489]
[1735725078468,0.26206485,702.76,701.81,1.06853489]
[1735725079564,0.26206485,702.76,701.8,1.06853489]
[1735725080670,0.26206485,702.76,701.83,1.06853489]
[1735725081167,1.48684061,702.77,701.83,1.06853489]
[1735725081663,1.48684061,702.77,701.84,1.06853489]
[1735725082267,1.06157671,702.9,701.84,1.06853489]
[1735725082466,1.48666064,702.85,701.84,1.06853489]
[1735725082666,0.26203294,702.84,701.84,1.06853489]
[1735725082964,0.26203294,702.84,701.88,1.06853489]
[1735725083669,1.48666064,702.85,701.88,1.06853489]
[1735725084069,0.26203423,702.84,701.88,1.06853489]
[1735725084465,1.48666064,702.85,701.83,1.06853489]
[1735725085269,0.26203431,702.84,701.83,1.06853489]
[1735725085570,0.26203431,702.84,701.85,1.06853489]
[1735725086674,0.26203431,702.84,701.81,1.06853489]
[1735725087773,0.26203431,702.84,701.83,1.06853489]
[1735725089472,0.26203872,702.83,701.83,1.06853489]
[1735725089776,1.48666064,702.85,701.83,1.06853489]
[1735725090170,1.06157671,702.99,701.83,1.06853489]
[1735725090374,1.48653892,702.93,701.83,1.06853489]
[1735725090673,0.26202488,702.92,701.83,1.06853489]
[1735725090876,1.48653892,702.93,701.83,1.06853489]
[1735725091271,1.48653892,702.93,701.85,1.06853489]
[1735725092077,1.06157671,703.06,701.85,1.06853489]
[1735725092273,1.48642251,702.99,701.86,1.06853489]
[1735725093878,1.48642251,702.99,701.88,1.06853489]
[1735725095175,1.48642251,702.99,701.84,1.06853489]
[1735725096479,1.48642251,702.99,701.77,1.06853489]
[1735725097380,1.48642251,702.99,701.76,1.06853489]
[1735725100384,1.06157671,703.33,701.76,1.06853489]
[1735725100583,1.48639606,703.09,701.78,1.06853489]
[1735725100780,1.06157671,703.35,701.78,1.06853489]
[1735725100982,0.26196744,703.34,701.78,1.06853489]
[1735725101185,1.4863167,703.08,701.78,1.06853489]